{"text_format":"1","workbook":"xlsx","n_sheets":9,"sheets":["Accueil","Paramètres","Grille ID","Notice","Tableau de synthèse","1","2","3","Pistes de prévention"],"not_rendered":{"charts":0,"images":6,"macros":1,"external_links":0,"defined_names":66,"comments":0,"pivot_tables":0},"unopened":[],"bounds":{"document_bytes":16777216,"sheet_cells":100000,"rows_first":2000,"rows_last":500,"rows_between":2000,"halvings":0,"cell_chars":16384,"cell_head_chars":4096},"cells_cut":0,"cells_raw":0,"read":"whole","date_system":"1900"}

{"sheet":"Accueil","index":0,"n_rows":26,"n_cols":13,"rows_kept":26,"cut":false,"hidden":false,"merged":[[3,1,3,12],[5,1,5,12],[7,1,7,12],[8,1,8,12],[9,1,9,12],[11,1,11,12],[12,1,12,12],[19,1,19,12],[21,1,21,12],[25,1,25,12],[22,1,22,12],[23,1,23,12],[24,1,24,12],[14,1,14,12],[15,1,15,12],[17,1,17,12],[18,1,18,12],[13,1,13,12]]}
[]
[]
[null,"MetoPhy",null,null,null,null,null,null,null,null,null,null,{"$f":"Version","v":"v1.0"}]
[null,"Activez les macros pour démarrer l'application"]
[]
[null,"Cas n° 1 : Avertissement de sécurité affiché sous le ruban Office, indiquant que les macros ont été désactivées"]
[]
[null,"Excel 2007 : cliquer sur Options... → Activer ce contenu → OK."]
[null,"Excel 2010 et versions suivantes : cliquer sur Activer le contenu."]
[null,"Cas n° 2 : Une boîte de dialogue (alerte ou avis de sécurité) a été affichée à l'ouverture et vous n'avez pas activé le contenu / les macros\n"]
[]
[null,"Fermer MetoPhy sans enregistrer. "]
[null,"À la prochaine ouverture, vous devrez, si cette boîte de dialogue réapparait :"]
[null,"Excel 2007 : cliquer sur Activer ce contenu → OK."]
[null,"Excel 2010 et versions suivantes : cliquer sur Activer les macros → OK."]
[null,"Cas n° 3 : Aucun avertissement de sécurité et onglet Développeur affiché dans le ruban"]
[]
[null,"Cliquer sur l’onglet Développeur → Sécurité des macros (dans le groupe Code) → Paramètres des macros → Désactiver toutes les macros avec notification → OK puis fermer MetoPhy sans enregistrer."]
[null,"À la prochaine ouverture, vous devrez activer les macros comme indiqué aux cas n° 1 ou n° 2."]
[null,"Cas n° 4 : Aucun avertissement de sécurité et onglet Développeur non affiché dans le ruban"]
[]
[null,"Excel 2007 : cliquer sur le Bouton Office → Options Excel → [Suite]"]
[null,"Excel 2010 et versions suivantes : cliquer sur Fichier → Options → [Suite]"]
[null,"[Suite] Centre de gestion de la confidentialité → Paramètres du centre de gestion de la confidentialité → Paramètres des macros → Désactiver toutes les macros avec notification → OK → OK puis fermer MetoPhy sans enregistrer."]
[null,"À la prochaine ouverture, vous devrez activer les macros comme indiqué aux cas n° 1 ou n° 2."]
[null,"Cette application fonctionne exclusivement sous Microsoft Excel ®, version 2007 et suivantes.\nLe type de fichier « .xlsm » (Classeur Excel prenant en charge les macros) doit être conservé lors de l'enregistrement."]

{"sheet":"Paramètres","index":1,"n_rows":40,"n_cols":3,"rows_kept":40,"cut":false,"hidden":true,"merged":[]}
["Nom","Valeur","Commentaire"]
["NomFich","Metophy v1.0.xlsm","Nom de fichier"]
["Version","v1.0","Modifier en cas de mise à jour"]
["PassWord","MetoPhy2016/"]
["PleinEcran",true,"Affichage plein écran si =VRAI (sauf feuille Paramètres)"]
["Zoom",100,"Facteur d'agrandissement en %"]
["ZoomLF",false,"Facteur d'agrandissement réglé sur Largeur fenêtre si =VRAI"]
[]
[]
["CtrlPrint",false,"Avant impression, supprime le surlignage vert des lignes sélectionnées dans le Tableau de synthèse si =VRAI"]
[]
[]
["CtrlDerFeuil",4,"Nom de la feuille active avant fermeture"]
[]
["CtrlExitSub",true,"Durant une procédure, neutralise la macro activée si =VRAI"]
[]
["Grille",1,"Repérage de la dernière grille quittée pour sélection sur TabSynthèse"]
["TriColonne",{"$f":"MATCH(\"q\",TriTabSynthèse)+1","v":2},"Colonne de tri active de TabSynthèse"]
[]
[]
[]
["Mess02","Voulez-vous décocher toutes les réponses ?"]
["Mess03","La suppression d'une grille de repérage est irréversible.\n\nVoulez-vous supprimer "]
["Mess04","Une nouvelle grille de repérage (grille n° 1)  a été insérée automatiquement après suppression "]
[]
["Mess06","La sélection des lignes s'effectue en cliquant dans la colonne Priorité ou avec les touches de direction, de tabulation ou la touche Entrée.\n\nPour trier le tableau : cliquer sur l'entête de colonne souhaitée. Renouveler pour inverser l'ordre de tri. Le triangle situé au-dessus de l'entête de colonne indique l'ordre de tri (bleu pour tri croissant, rouge pour tri décroissant).\n\nLa priorisation s'effectue en fonction de la cotation et de l'effectif concerné (voir Nota ci-dessous).\n\nL'affichage d'une grille est possible par clic droit sur la ligne correspondante.\n\nPour supprimer une grille : sélectionner la ligne de la grille à supprimer puis cliquer sur la commande Supprimer.\n\nNOTA\nUne cotation incomplète peut ne pas refléter le niveau de risque réel. Les grilles dont la cotation est incomplète sont repérées (*) dans la colonne Poste de travail.","Mode d'emploi Tableau de synthèse"]
["Mess07","Indiquer : la localisation et la désignation du poste de travail, le nom de l’auditeur et des salariés interviewés, l'effectif concerné (nombre de salariés exposés), la date d'observation du poste de travail. Les deux premières informations ainsi que le nombre de salariés exposés sont reportés dans le tableau de synthèse.\n\nCoter chaque item en cochant la réponse Non/Oui ou Facile/Supportable/Difficile selon les indicateurs. Le nombre de réponses est affiché en haut de la grille.\n\nLe cochage/décochage s’effectue par clic droit dans la cellule.\nUn clic droit sur une plage contenant plusieurs cellules efface toute la plage.\nUn double-clic gauche n'importe où dans la zone de cotation efface toute la zone de cotation.\n\nLe nombre de réponses [Oui + Difficile] ainsi que leur répartition par indicateur sont reportés dans le tableau de synthèse.\n\nVous pouvez compléter les réponses par des observations et saisir des commentaires en bas de la grille. Attention, seule la partie visible du texte peut être imprimée.","Mode d'emploi Grille"]
["Mess08","Vous utilisez une version Excel antérieure à 2007 non compatible avec MetoPhy.\n\nMetoPhy fonctionne exclusivement sous Microsoft Excel ®, version 2007 et suivantes.\n\nFermer MetoPhy sans enregistrer les modifications."]
["Mess09","Le type de fichier choisi lors du dernier enregistrement est incompatible avec MetoPhy.\n\nLe type de fichier « .xlsm » (classeur Excel prenant en charge les macros) doit impérativement être conservé lors de l’enregistrement.\n\nCe fichier est inutilisable.\nUn réenregistrement avec le type de fichier « .xlsm » peut éventuellement rétablir sa fonctionnalité.   \n"]
["Mess10",{"$f":"CONCATENATE(\"Voulez-vous enregistrer les modifications apportées à\",CHAR(10),\"« \",NomFich,\" »\")","v":"Voulez-vous enregistrer les modifications apportées à\n« Metophy v1.0.xlsm »"}]
["Mess11","Commande Excel neutralisée.\n\nUtiliser la commande « Fermer » spécifique à MetoPhy."]
["Mess12","Commande Excel neutralisée.\n\nUtiliser la commande « Imprimer » spécifique à MetoPhy."]
["Mess13","Le nombre de réponses [Oui + Difficile] ainsi que leur répartition par indicateur sont reportés dans le tableau de synthèse.\n\nInd A affiche le nombre de réponses Oui pour l’indicateur A. Santé au travail / Gestion du personnel.\n\nInd 1 à Ind 5 affichent le nombre de réponses Difficile pour les indicateurs 1 à 5 (Efforts physiques, Dimensionnement, Caractéristiques temporelles, Caractéristiques de l’environnement, Organisation).","Ne pas modifier supprimer les espaces qui permettent un alignement sur le signe \"=\""]
["Mess14","Seuls quelques réglages sont pris en compte tels que couleur / noir et blanc, nombre de copies, assemblage…\n\nToute modification de la mise en page est inutile et sera ignorée lors de l’impression (marges, orientation, zone d'impression, échelle, entête et pied de page, taille de papier, ordre des pages…).\n"]
["Mess15","Nombre maximal de grilles atteint. \n\nPlus aucune grille ne peut être ajoutée."]
[]
[]
[]
[]
["Conception/réalisation : Jean-Jacques Robinet, Carsat Bourgogne et Franche-Comté - 21/01/2016."]

{"sheet":"Grille ID","index":2,"n_rows":61,"n_cols":16,"rows_kept":61,"cut":false,"hidden":true,"merged":[[12,1,13,3],[24,7,24,12],[12,4,12,6],[12,7,12,12],[20,1,20,3],[20,7,20,12],[21,7,21,12],[22,7,22,12],[23,7,23,12],[17,2,17,3],[16,2,16,3],[16,6,16,8],[17,6,17,9],[17,11,17,12],[35,1,35,3],[35,7,35,12],[25,7,25,12],[26,7,26,12],[27,7,27,12],[28,1,28,3],[28,7,28,12],[29,7,29,12],[33,7,33,12],[34,7,34,12],[37,7,37,12],[38,7,38,12],[48,1,48,3],[48,7,48,12],[39,7,39,12],[40,7,40,12],[45,7,45,12],[46,7,46,12],[47,7,47,12],[0,1,2,1],[57,7,57,12],[58,7,58,12],[51,7,51,12],[42,1,42,3],[42,7,42,12],[43,7,43,12],[44,7,44,12],[49,7,49,12],[50,7,50,12],[41,7,41,12],[30,7,30,12],[31,7,31,12],[32,7,32,12],[16,11,16,12],[36,7,36,12],[59,7,59,12],[62,1,62,12],[52,7,52,12],[53,7,53,12],[54,1,54,3],[54,7,54,12],[55,7,55,12],[56,7,56,12]]}
[]
[null,null,null,null,null,null,null,null,null,null,null,null,null,"Ne pas redimensionner col. A et Q"]
[]
[]
[]
[]
[]
[]
[]
[]
[]
[]
[null,{"$f":"CONCATENATE(\"Grille de repérage de la charge physique n° \",IF(P14=\"Grille ID\",\"\",P14))","v":"Grille de repérage de la charge physique n° "},null,null,"Cotation",null,null,"Répartition [Oui + Difficile] par indicateur"]
[null,null,null,null,"Non + Facile ","Supportable ","Oui + Difficile ","Ind A","Ind 1","Ind 2","Ind 3","Ind 4","Ind 5",null,"N° grille",{"$f":"MID(CELL(\"nomfichier\",Q20),FIND(\"]\",CELL(\"nomfichier\",Q20))+1,99)","v":"Grille ID"}]
[null,{"$f":"IF(SUM(Cotation)=0,\"\",CONCATENATE(IF(CtrlCoches=0,\"\",CONCATENATE(\"Nombre d'items cotés = \",34-CtrlCoches,\"/\",34))))","v":""},null,null,{"$f":"IF(COUNTIF($P22:$P60,1)=0,\"\",COUNTIF($P22:$P60,1))","v":""},{"$f":"IF(COUNTIF($P22:$P60,2)=0,\"\",COUNTIF($P22:$P60,2))","v":""},{"$f":"IF(COUNTIF($P22:$P60,3)=0,\"\",COUNTIF($P22:$P60,3))","v":""},{"$f":"IF(COUNTIF($P22:$P28,3)=0,\"\",COUNTIF($P22:$P28,3))","v":""},{"$f":"IF(COUNTIF($P30:$P35,3)=0,\"\",COUNTIF($P30:$P35,3))","v":""},{"$f":"IF(COUNTIF($P37:$P42,3)=0,\"\",COUNTIF($P37:$P42,3))","v":""},{"$f":"IF(COUNTIF($P44:$P48,3)=0,\"\",COUNTIF($P44:$P48,3))","v":""},{"$f":"IF(COUNTIF($P50:$P54,3)=0,\"\",COUNTIF($P50:$P54,3))","v":""},{"$f":"IF(COUNTIF($P56:$P60,3)=0,\"\",COUNTIF($P56:$P60,3))","v":""},null,"Priorité",0]
[]
[null,"Localisation :",null,null,null,"Auditeur :",null,null,null,null,"Effectif :"]
[null,"Poste de travail :",null,null,null,"Salarié(s) interviewé(s) :",null,null,null,null,"Date :",null,null,null,"CtrlCoches",{"$f":"COUNTIF(Cotation,0)","v":34}]
[]
[null,"Indicateurs / Items"]
[null,"A. Santé au travail / Gestion du personnel\n    Pour ce poste, a-t-on observé :",null,null,"Non",null,{"$f":"IF(COUNTIF(Q22:Q28,\"3\")=0,\"Oui\",CONCATENATE(\"Oui = \",COUNTIF(Q22:Q28,\"3\")))","v":"Oui"},"Observations"]
[null,"Un accident du travail avec arrêt ?",null,null,null,null,null,null,null,null,null,null,null,null,null,{"$f":"IF(COUNTA(E22:G22)>1,10,IF(E22=\"P\",1,IF(F22=\"P\",2,IF(G22=\"P\",3,0))))","v":0}]
[null,"Des plaintes, douleurs, pathologies ?",null,null,null,null,null,null,null,null,null,null,null,null,null,{"$f":"IF(COUNTA(E23:G23)>1,10,IF(E23=\"P\",1,IF(F23=\"P\",2,IF(G23=\"P\",3,0))))","v":0}]
[null,"Une restriction d'aptitude et/ou une inaptitude ?",null,null,null,null,null,null,null,null,null,null,null,null,null,0]
[null,"Une alerte du CHSCT ou des représentants du personnel ?",null,null,null,null,null,null,null,null,null,null,null,null,null,0]
[null,"De l’absentéisme récurrent ?",null,null,null,null,null,null,null,null,null,null,null,null,null,0]
[null,"Un recours fréquent à l'intérim ?",null,null,null,null,null,null,null,null,null,null,null,null,null,0]
[null,"Un turn-over significatif ?",null,null,null,null,null,null,null,null,null,null,null,null,null,0]
[null,"1. Efforts physiques",null,null,"Facile ou\nnon concerné","Supportable","Difficile","Préciser la réponse\n(quand ? quoi ? pourquoi ?...)"]
[null,"Les efforts exercés, la levée et la dépose des charges sont :",null,null,null,null,null,null,null,null,null,null,null,null,null,0]
[null,"Le déplacement des objets mobiles (chariot, tire-palette) est :",null,null,null,null,null,null,null,null,null,null,null,null,null,0]
[null,"Les déplacements avec charge sont :",null,null,null,null,null,null,null,null,null,null,null,null,null,0]
[null,"La prise des objets est :",null,null,null,null,null,null,null,null,null,null,null,null,null,0]
[null,"La réalisation de tâches minutieuses ou complexes est :",null,null,null,null,null,null,null,null,null,null,null,null,null,0]
[null,"L'état, l'encombrement ou les pentes du sol rendent les déplacements :",null,null,null,null,null,null,null,null,null,null,null,null,null,0]
[null,"2. Dimensionnement",null,null,"Facile ou\nnon concerné","Supportable","Difficile","Préciser la réponse\n(quand ? quoi ? pourquoi ?...)"]
[null,"Les postures du tronc (se pencher, se tourner) sont :",null,null,null,null,null,null,null,null,null,null,null,null,null,0]
[null,"Les positions des bras (lever les bras) sont :",null,null,null,null,null,null,null,null,null,null,null,null,null,0]
[null,"Les déplacements longs sont :",null,null,null,null,null,null,null,null,null,null,null,null,null,0]
[null,"Le déplacement ou la manutention des objets encombrants sont :",null,null,null,null,null,null,null,null,null,null,null,null,null,0]
[null,"L'agencement du poste rend le travail :",null,null,null,null,null,null,null,null,null,null,null,null,null,0]
[null,"L'impossibilité de changer de posture rend la tenue du poste :",null,null,null,null,null,null,null,null,null,null,null,null,null,0]
[null,"3. Caractéristiques temporelles ",null,null,"Facile ou\nnon concerné","Supportable","Difficile","Préciser la réponse\n(quand ? quoi ? pourquoi ?...)"]
[null,"Les contraintes du travail répétitif sont :",null,null,null,null,null,null,null,null,null,null,null,null,null,0]
[null,"Les contraintes du travail en flux tendu sont :",null,null,null,null,null,null,null,null,null,null,null,null,null,0]
[null,"La durée des efforts physiques est :",null,null,null,null,null,null,null,null,null,null,null,null,null,0]
[null,"Le choix des moments de pauses est :",null,null,null,null,null,null,null,null,null,null,null,null,null,0]
[null,"Les changements imprévus d’activité sont :",null,null,null,null,null,null,null,null,null,null,null,null,null,0]
[null,"4. Caractéristiques de l'environnement",null,null,"Facile ou\nnon concerné","Supportable","Difficile","Préciser la réponse\n(quand ? quoi ? pourquoi ?...)"]
[null,"Le bruit, la température, l'éclairage rendent la tenue du poste :",null,null,null,null,null,null,null,null,null,null,null,null,null,0]
[null,"Les vibrations (corps, bras, mains)  rendent la tenue du poste :",null,null,null,null,null,null,null,null,null,null,null,null,null,0]
[null,"Les produits chimiques, poussières, fumées rendent la tenue du poste :",null,null,null,null,null,null,null,null,null,null,null,null,null,0]
[null,"L’utilisation des équipements (machine, outils, aides techniques) est :",null,null,null,null,null,null,null,null,null,null,null,null,null,0]
[null,"Le port des équipements de protection individuelle (EPI) est :",null,null,null,null,null,null,null,null,null,null,null,null,null,0]
[null,"5. Organisation",null,null,"Facile ou\nnon concerné","Supportable","Difficile","Préciser la réponse\n(quand ? quoi ? pourquoi ?...)"]
[null,"L'impossibilité de modifier la façon de faire son travail rend le poste :",null,null,null,null,null,null,null,null,null,null,null,null,null,0]
[null,"Les dysfonctionnements, incidents, pannes… rendent le poste :",null,null,null,null,null,null,null,null,null,null,null,null,null,0]
[null,"Les horaires atypiques (travail posté...) rendent le poste :",null,null,null,null,null,null,null,null,null,null,null,null,null,0]
[null,"Les objectifs de production (qualité, quantité, délais) sont :",null,null,null,null,null,null,null,null,null,null,null,null,null,0]
[null,"Le travail à plusieurs rend le poste :",null,null,null,null,null,null,null,null,null,null,null,null,null,0]
[null,"Commentaires :"]

{"sheet":"Notice","index":3,"n_rows":132,"n_cols":14,"rows_kept":132,"cut":false,"hidden":true,"merged":[[30,1,30,12],[26,1,27,12],[28,1,28,12],[29,1,29,12]]}
[]
[null,null,null,null,null,null,null,null,null,null,null,null,null,"Ne pas redimensionner col. A et Q"]
[]
[]
[]
[]
[]
[]
[]
[]
[]
[]
[]
[]
[]
[]
[]
[]
[]
[]
[]
[]
[]
[]
[]
[]
[null,"MetoPhy"]
[]
[null,"Identifier et réduire les risques liés à l'activité physique au poste de travail"]
[null,{"$f":"Version","v":"v1.0"}]
[null,"Notice"]
[]
[]
[null,null,"Préambule"]
[]
[null,null,"MetoPhy est un outil conçu et réalisé par la Carsat Bourgogne et Franche-Comté dans le cadre du programme 2014-2017 de prévention des risques professionnels dans le secteur du travail des métaux."]
[]
[null,null,"Directement lié à l’axe prioritaire Activité physique au poste de travail de ce programme, il permet :"]
[]
[null,null,"•  d'identifier les postes de travail qui exposent les salariés à des risques d'accident du travail ou de maladie professionnelle liés à des manutentions manuelles de charges, des positions de travail contraignantes, des efforts prolongés ou des gestes répétitifs. "]
[]
[null,null,"•  de rechercher et définir des actions, permettant de supprimer ou réduire les risques."]
[]
[]
[null,null,"Description de l'outil"]
[]
[null,null,"Dans sa version informatique, MetoPhy présente :"]
[]
[null,null,"•  une grille de repérage de la charge physique pour chaque poste de travail analysé (onglets numérotés). Cette grille est utilisée pour identifier les différentes contraintes liées à l’activité physique et leur origine. Le nombre de grilles est illimité."]
[]
[null,null,"•  un tableau de synthèse des postes à risque."]
[]
[null,null,"•  des pistes de prévention pour rechercher des solutions afin de réduire les risques liés à l'activité physique."]
[]
[null,null,"La grille de repérage et les pistes de prévention ont été élaborées à partir du document INRS ED 6161 - © INRS 2014."]
[]
[]
[null,null,"Méthode"]
[]
[null,null,"Cette méthode doit être mise en oeuvre avec la participation des salariés et de leurs représentants."]
[]
[null,null,"Repérer et prioriser les postes à risque"]
[]
[null,null,"1.  Choisir les postes de travail qui feront l'objet d'une analyse, en exploitant les informations du document unique et en utilisant l'indicateur Santé au travail / Gestion du personnel figurant dans la grille de repérage."]
[]
[null,null,"2.  Compléter pour ces postes de travail une grille de repérage à partir de l'observation du travail réalisé et des échanges avec les salariés."]
[]
[null,null,"3.  La cotation obtenue (nombre d’items cotés Oui pour l'indicateur Santé au travail /Gestion du personnel et nombre d’items cotés Difficile pour les autres indicateurs) est automatiquement reportée dans le tableau de synthèse."]
[]
[null,null,"4.  Dans le tableau de synthèse, prioriser les postes à risque en fonction de la cotation [Oui + Difficile]. Prendre en compte également l’effectif concerné (nombre de salariés exposés)."]
[]
[null,null,"Rechercher des solutions"]
[]
[null,null,"5.  Utiliser les pistes de prévention pour définir les actions à mettre en oeuvre afin de supprimer ou réduire les risques identifiés. Respecter les valeurs et les indications des tableaux Efforts physiques et Dimensionnement."]
[]
[null,null,"Etablir un plan d'action"]
[]
[null,null,"6.  Intégrer au plan d’action de l’entreprise les solutions retenues."]
[]
[]
[null,null,"Fonctionnement de l'application "]
[]
[null,null,"MetoPhy fonctionne exclusivement sous Microsoft Excel ®, version 2007 et suivantes. Les macros doivent en outre être activées."]
[]
[null,null,"Le type de fichier « .xlsm » (Classeur Excel prenant en charge les macros) doit impérativement être conservé lors de l'enregistrement. Dans le cas contraire, l'application ne pourra plus être utilisée."]
[]
[null,null,"La protection appliquée à l'ensemble du classeur, garante du bon fonctionnement, empêche toute modification par l'utilisateur."]
[]
[null,null,"Commandes"]
[]
[null,null,"Les commandes, regroupées en haut de l'écran, sont spécifiques à MetoPhy."]
[]
[null,null,"Les commandes Imprimer et Fermer se substituent aux commandes Excel usuelles qui sont neutralisées. Celles-ci restent actives pour toute autre application Excel ouverte."]
[]
[null,null,"La commande Imprimer permet un accès simplifié aux options d'impression. La mise en page des différentes feuilles est prédéfinie et systématiquement appliquée lors de l'impression."]
[]
[null,null,"La commande Mode d'emploi affiche les consignes d'utilisation propres à l'onglet actif."]
[]
[]
[]
[null,null,"Contact"]
[]
[]
[]
[null,null,"0 821 10 21 21 (coût : 0,15 € la min)"]
[]
[null,null,"Site web"]
[]
[]
[]
[]
[]
[]
[null,null,"Pour aller plus loin"]
[]
[null,null,"Brochures INRS"]
[]
[null,null,"ED 6161  Méthode d'analyse de la charge physique de travail"]
[]
[null,null,"ED 6087  Travail et lombalgie"]
[]
[null,null,"ED 7200  La formation-action PRAP (prévention des risques liés à l'activité physique)"]
[]
[null,null,"ED 975    La circulation en entreprise"]
[]
[null,null,"ED 79      Conception et aménagement des postes de travail"]
[]
[]
[]
[null,null,"Norme"]
[]
[null,null,"NF X35-109  Ergonomie - Manutention manuelle de charge pour soulever, déplacer et pousser/tirer - Méthodologie d'analyse et valeurs seuils"]

{"sheet":"Tableau de synthèse","index":4,"n_rows":33,"n_cols":14,"rows_kept":33,"cut":false,"hidden":true,"merged":[[27,12,28,12],[27,1,28,1],[27,2,28,2],[27,3,28,3],[27,4,28,4],[27,5,27,11],[15,1,16,12],[21,1,22,4],[21,5,25,12],[23,1,25,4],[17,1,17,12],[18,1,18,12],[19,1,19,12]]}
[]
[null,null,null,null,null,null,null,null,null,null,null,null,null,"Ne pas redimensionner col. A et Q"]
[]
[null,null,null,null,null,null,null,null,null,null,null,null,null,"Lignes masquées 4 à 18"]
[]
[]
[]
[]
[]
[]
[]
[]
[]
[]
[]
[null,"MetoPhy"]
[]
[null,"Identifier et réduire les risques liés à l'activité physique au poste de travail"]
[null,{"$f":"Version","v":"v1.0"}]
[null,"Repérage de la charge physique de travail"]
[]
[null,"Tableau de synthèse des postes à risque",null,null,null,"Indicateurs (Ind)\nA. Santé au travail / Gestion du personnel\n1. Efforts physiques\n2. Dimensionnement\n3. Caractéristiques temporelles\n4. Caractéristiques de l'environnement\n5. Organisation"]
[]
[null,"Toute cotation [Oui + Difficile] doit faire l'objet d'une recherche de solutions spécifiques selon un ordre prioritaire à définir en fonction des niveaux de risque et des effectifs concernés.\nLes grilles dont la cotation est incomplète sont repérées (*) dans la colonne Poste de travail"]
[]
[]
[null,"p"]
[null,null,null,null,null,"Cotation [Oui + Difficile]"]
[null,null,null,null,null,null,null,null,null,null,null,null,null,"Select"]
[null,"Grille","Localisation","Poste de travail","Nb de salariés","IndA","Ind1","Ind2","Ind3","Ind4","Ind5","Total","Priorité","Select"]
[null,1,null,null,null,null,null,null,null,null,null,null,null,1]
[null,2]
[null,3]

{"sheet":"1","index":5,"n_rows":61,"n_cols":16,"rows_kept":61,"cut":false,"hidden":true,"merged":[[62,1,62,12],[49,7,49,12],[50,7,50,12],[51,7,51,12],[52,7,52,12],[53,7,53,12],[54,1,54,3],[54,7,54,12],[55,7,55,12],[56,7,56,12],[57,7,57,12],[58,7,58,12],[59,7,59,12],[48,1,48,3],[48,7,48,12],[38,7,38,12],[39,7,39,12],[40,7,40,12],[41,7,41,12],[42,1,42,3],[42,7,42,12],[43,7,43,12],[44,7,44,12],[45,7,45,12],[46,7,46,12],[47,7,47,12],[37,7,37,12],[28,1,28,3],[28,7,28,12],[29,7,29,12],[30,7,30,12],[31,7,31,12],[32,7,32,12],[33,7,33,12],[34,7,34,12],[35,1,35,3],[35,7,35,12],[36,7,36,12],[27,7,27,12],[17,2,17,3],[17,6,17,9],[17,11,17,12],[20,1,20,3],[20,7,20,12],[21,7,21,12],[22,7,22,12],[23,7,23,12],[24,7,24,12],[25,7,25,12],[26,7,26,12],[0,1,2,1],[12,1,13,3],[12,4,12,6],[12,7,12,12],[16,2,16,3],[16,6,16,8],[16,11,16,12]]}
[]
[null,null,null,null,null,null,null,null,null,null,null,null,null,"Ne pas redimensionner col. A et Q"]
[]
[]
[]
[]
[]
[]
[]
[]
[]
[]
[null,{"$f":"CONCATENATE(\"Grille de repérage de la charge physique n° \",IF(P14=\"Grille ID\",\"\",P14))","v":"Grille de repérage de la charge physique n° 1"},null,null,"Cotation",null,null,"Répartition [Oui + Difficile] par indicateur"]
[null,null,null,null,"Non + Facile ","Supportable ","Oui + Difficile ","Ind A","Ind 1","Ind 2","Ind 3","Ind 4","Ind 5",null,"N° grille",{"$f":"MID(CELL(\"nomfichier\",Q20),FIND(\"]\",CELL(\"nomfichier\",Q20))+1,99)","v":"1"}]
[null,{"$f":"IF(SUM(Cotation)=0,\"\",CONCATENATE(IF(CtrlCoches=0,\"\",CONCATENATE(\"Nombre d'items cotés = \",34-CtrlCoches,\"/\",34))))","v":""},null,null,{"$f":"IF(COUNTIF($P22:$P60,1)=0,\"\",COUNTIF($P22:$P60,1))","v":""},{"$f":"IF(COUNTIF($P22:$P60,2)=0,\"\",COUNTIF($P22:$P60,2))","v":""},{"$f":"IF(COUNTIF($P22:$P60,3)=0,\"\",COUNTIF($P22:$P60,3))","v":""},{"$f":"IF(COUNTIF($P22:$P28,3)=0,\"\",COUNTIF($P22:$P28,3))","v":""},{"$f":"IF(COUNTIF($P30:$P35,3)=0,\"\",COUNTIF($P30:$P35,3))","v":""},{"$f":"IF(COUNTIF($P37:$P42,3)=0,\"\",COUNTIF($P37:$P42,3))","v":""},{"$f":"IF(COUNTIF($P44:$P48,3)=0,\"\",COUNTIF($P44:$P48,3))","v":""},{"$f":"IF(COUNTIF($P50:$P54,3)=0,\"\",COUNTIF($P50:$P54,3))","v":""},{"$f":"IF(COUNTIF($P56:$P60,3)=0,\"\",COUNTIF($P56:$P60,3))","v":""},null,"Priorité",0]
[]
[null,"Localisation :",null,null,null,"Auditeur :",null,null,null,null,"Effectif :"]
[null,"Poste de travail :",null,null,null,"Salarié(s) interviewé(s) :",null,null,null,null,"Date :",null,null,null,"CtrlCoches",{"$f":"COUNTIF(Cotation,0)","v":34}]
[]
[null,"Indicateurs / Items"]
[null,"A. Santé au travail / Gestion du personnel\n    Pour ce poste, a-t-on observé :",null,null,"Non",null,{"$f":"IF(COUNTIF(Q22:Q28,\"3\")=0,\"Oui\",CONCATENATE(\"Oui = \",COUNTIF(Q22:Q28,\"3\")))","v":"Oui"},"Observations"]
[null,"Un accident du travail avec arrêt ?",null,null,null,null,null,null,null,null,null,null,null,null,null,{"$f":"IF(COUNTA(E22:G22)>1,10,IF(E22=\"P\",1,IF(F22=\"P\",2,IF(G22=\"P\",3,0))))","v":0}]
[null,"Des plaintes, douleurs, pathologies ?",null,null,null,null,null,null,null,null,null,null,null,null,null,{"$f":"IF(COUNTA(E23:G23)>1,10,IF(E23=\"P\",1,IF(F23=\"P\",2,IF(G23=\"P\",3,0))))","v":0}]
[null,"Une restriction d'aptitude et/ou une inaptitude ?",null,null,null,null,null,null,null,null,null,null,null,null,null,0]
[null,"Une alerte du CHSCT ou des représentants du personnel ?",null,null,null,null,null,null,null,null,null,null,null,null,null,0]
[null,"De l’absentéisme récurrent ?",null,null,null,null,null,null,null,null,null,null,null,null,null,0]
[null,"Un recours fréquent à l'intérim ?",null,null,null,null,null,null,null,null,null,null,null,null,null,0]
[null,"Un turn-over significatif ?",null,null,null,null,null,null,null,null,null,null,null,null,null,0]
[null,"1. Efforts physiques",null,null,"Facile ou\nnon concerné","Supportable","Difficile","Préciser la réponse\n(quand ? quoi ? pourquoi ?...)"]
[null,"Les efforts exercés, la levée et la dépose des charges sont :",null,null,null,null,null,null,null,null,null,null,null,null,null,0]
[null,"Le déplacement des objets mobiles (chariot, tire-palette) est :",null,null,null,null,null,null,null,null,null,null,null,null,null,0]
[null,"Les déplacements avec charge sont :",null,null,null,null,null,null,null,null,null,null,null,null,null,0]
[null,"La prise des objets est :",null,null,null,null,null,null,null,null,null,null,null,null,null,0]
[null,"La réalisation de tâches minutieuses ou complexes est :",null,null,null,null,null,null,null,null,null,null,null,null,null,0]
[null,"L'état, l'encombrement ou les pentes du sol rendent les déplacements :",null,null,null,null,null,null,null,null,null,null,null,null,null,0]
[null,"2. Dimensionnement",null,null,"Facile ou\nnon concerné","Supportable","Difficile","Préciser la réponse\n(quand ? quoi ? pourquoi ?...)"]
[null,"Les postures du tronc (se pencher, se tourner) sont :",null,null,null,null,null,null,null,null,null,null,null,null,null,0]
[null,"Les positions des bras (lever les bras) sont :",null,null,null,null,null,null,null,null,null,null,null,null,null,0]
[null,"Les déplacements longs sont :",null,null,null,null,null,null,null,null,null,null,null,null,null,0]
[null,"Le déplacement ou la manutention des objets encombrants sont :",null,null,null,null,null,null,null,null,null,null,null,null,null,0]
[null,"L'agencement du poste rend le travail :",null,null,null,null,null,null,null,null,null,null,null,null,null,0]
[null,"L'impossibilité de changer de posture rend la tenue du poste :",null,null,null,null,null,null,null,null,null,null,null,null,null,0]
[null,"3. Caractéristiques temporelles ",null,null,"Facile ou\nnon concerné","Supportable","Difficile","Préciser la réponse\n(quand ? quoi ? pourquoi ?...)"]
[null,"Les contraintes du travail répétitif sont :",null,null,null,null,null,null,null,null,null,null,null,null,null,0]
[null,"Les contraintes du travail en flux tendu sont :",null,null,null,null,null,null,null,null,null,null,null,null,null,0]
[null,"La durée des efforts physiques est :",null,null,null,null,null,null,null,null,null,null,null,null,null,0]
[null,"Le choix des moments de pauses est :",null,null,null,null,null,null,null,null,null,null,null,null,null,0]
[null,"Les changements imprévus d’activité sont :",null,null,null,null,null,null,null,null,null,null,null,null,null,0]
[null,"4. Caractéristiques de l'environnement",null,null,"Facile ou\nnon concerné","Supportable","Difficile","Préciser la réponse\n(quand ? quoi ? pourquoi ?...)"]
[null,"Le bruit, la température, l'éclairage rendent la tenue du poste :",null,null,null,null,null,null,null,null,null,null,null,null,null,0]
[null,"Les vibrations (corps, bras, mains)  rendent la tenue du poste :",null,null,null,null,null,null,null,null,null,null,null,null,null,0]
[null,"Les produits chimiques, poussières, fumées rendent la tenue du poste :",null,null,null,null,null,null,null,null,null,null,null,null,null,0]
[null,"L’utilisation des équipements (machine, outils, aides techniques) est :",null,null,null,null,null,null,null,null,null,null,null,null,null,0]
[null,"Le port des équipements de protection individuelle (EPI) est :",null,null,null,null,null,null,null,null,null,null,null,null,null,0]
[null,"5. Organisation",null,null,"Facile ou\nnon concerné","Supportable","Difficile","Préciser la réponse\n(quand ? quoi ? pourquoi ?...)"]
[null,"L'impossibilité de modifier la façon de faire son travail rend le poste :",null,null,null,null,null,null,null,null,null,null,null,null,null,0]
[null,"Les dysfonctionnements, incidents, pannes… rendent le poste :",null,null,null,null,null,null,null,null,null,null,null,null,null,0]
[null,"Les horaires atypiques (travail posté...) rendent le poste :",null,null,null,null,null,null,null,null,null,null,null,null,null,0]
[null,"Les objectifs de production (qualité, quantité, délais) sont :",null,null,null,null,null,null,null,null,null,null,null,null,null,0]
[null,"Le travail à plusieurs rend le poste :",null,null,null,null,null,null,null,null,null,null,null,null,null,0]
[null,"Commentaires :"]

{"sheet":"2","index":6,"n_rows":61,"n_cols":16,"rows_kept":61,"cut":false,"hidden":true,"merged":[[62,1,62,12],[49,7,49,12],[50,7,50,12],[51,7,51,12],[52,7,52,12],[53,7,53,12],[54,1,54,3],[54,7,54,12],[55,7,55,12],[56,7,56,12],[57,7,57,12],[58,7,58,12],[59,7,59,12],[48,1,48,3],[48,7,48,12],[38,7,38,12],[39,7,39,12],[40,7,40,12],[41,7,41,12],[42,1,42,3],[42,7,42,12],[43,7,43,12],[44,7,44,12],[45,7,45,12],[46,7,46,12],[47,7,47,12],[37,7,37,12],[28,1,28,3],[28,7,28,12],[29,7,29,12],[30,7,30,12],[31,7,31,12],[32,7,32,12],[33,7,33,12],[34,7,34,12],[35,1,35,3],[35,7,35,12],[36,7,36,12],[27,7,27,12],[17,2,17,3],[17,6,17,9],[17,11,17,12],[20,1,20,3],[20,7,20,12],[21,7,21,12],[22,7,22,12],[23,7,23,12],[24,7,24,12],[25,7,25,12],[26,7,26,12],[0,1,2,1],[12,1,13,3],[12,4,12,6],[12,7,12,12],[16,2,16,3],[16,6,16,8],[16,11,16,12]]}
[]
[null,null,null,null,null,null,null,null,null,null,null,null,null,"Ne pas redimensionner col. A et Q"]
[]
[]
[]
[]
[]
[]
[]
[]
[]
[]
[null,{"$f":"CONCATENATE(\"Grille de repérage de la charge physique n° \",IF(P14=\"Grille ID\",\"\",P14))","v":"Grille de repérage de la charge physique n° 2"},null,null,"Cotation",null,null,"Répartition [Oui + Difficile] par indicateur"]
[null,null,null,null,"Non + Facile ","Supportable ","Oui + Difficile ","Ind A","Ind 1","Ind 2","Ind 3","Ind 4","Ind 5",null,"N° grille",{"$f":"MID(CELL(\"nomfichier\",Q20),FIND(\"]\",CELL(\"nomfichier\",Q20))+1,99)","v":"2"}]
[null,{"$f":"IF(SUM(Cotation)=0,\"\",CONCATENATE(IF(CtrlCoches=0,\"\",CONCATENATE(\"Nombre d'items cotés = \",34-CtrlCoches,\"/\",34))))","v":""},null,null,{"$f":"IF(COUNTIF($P22:$P60,1)=0,\"\",COUNTIF($P22:$P60,1))","v":""},{"$f":"IF(COUNTIF($P22:$P60,2)=0,\"\",COUNTIF($P22:$P60,2))","v":""},{"$f":"IF(COUNTIF($P22:$P60,3)=0,\"\",COUNTIF($P22:$P60,3))","v":""},{"$f":"IF(COUNTIF($P22:$P28,3)=0,\"\",COUNTIF($P22:$P28,3))","v":""},{"$f":"IF(COUNTIF($P30:$P35,3)=0,\"\",COUNTIF($P30:$P35,3))","v":""},{"$f":"IF(COUNTIF($P37:$P42,3)=0,\"\",COUNTIF($P37:$P42,3))","v":""},{"$f":"IF(COUNTIF($P44:$P48,3)=0,\"\",COUNTIF($P44:$P48,3))","v":""},{"$f":"IF(COUNTIF($P50:$P54,3)=0,\"\",COUNTIF($P50:$P54,3))","v":""},{"$f":"IF(COUNTIF($P56:$P60,3)=0,\"\",COUNTIF($P56:$P60,3))","v":""},null,"Priorité",0]
[]
[null,"Localisation :",null,null,null,"Auditeur :",null,null,null,null,"Effectif :"]
[null,"Poste de travail :",null,null,null,"Salarié(s) interviewé(s) :",null,null,null,null,"Date :",null,null,null,"CtrlCoches",{"$f":"COUNTIF(Cotation,0)","v":34}]
[]
[null,"Indicateurs / Items"]
[null,"A. Santé au travail / Gestion du personnel\n    Pour ce poste, a-t-on observé :",null,null,"Non",null,{"$f":"IF(COUNTIF(Q22:Q28,\"3\")=0,\"Oui\",CONCATENATE(\"Oui = \",COUNTIF(Q22:Q28,\"3\")))","v":"Oui"},"Observations"]
[null,"Un accident du travail avec arrêt ?",null,null,null,null,null,null,null,null,null,null,null,null,null,{"$f":"IF(COUNTA(E22:G22)>1,10,IF(E22=\"P\",1,IF(F22=\"P\",2,IF(G22=\"P\",3,0))))","v":0}]
[null,"Des plaintes, douleurs, pathologies ?",null,null,null,null,null,null,null,null,null,null,null,null,null,{"$f":"IF(COUNTA(E23:G23)>1,10,IF(E23=\"P\",1,IF(F23=\"P\",2,IF(G23=\"P\",3,0))))","v":0}]
[null,"Une restriction d'aptitude et/ou une inaptitude ?",null,null,null,null,null,null,null,null,null,null,null,null,null,0]
[null,"Une alerte du CHSCT ou des représentants du personnel ?",null,null,null,null,null,null,null,null,null,null,null,null,null,0]
[null,"De l’absentéisme récurrent ?",null,null,null,null,null,null,null,null,null,null,null,null,null,0]
[null,"Un recours fréquent à l'intérim ?",null,null,null,null,null,null,null,null,null,null,null,null,null,0]
[null,"Un turn-over significatif ?",null,null,null,null,null,null,null,null,null,null,null,null,null,0]
[null,"1. Efforts physiques",null,null,"Facile ou\nnon concerné","Supportable","Difficile","Préciser la réponse\n(quand ? quoi ? pourquoi ?...)"]
[null,"Les efforts exercés, la levée et la dépose des charges sont :",null,null,null,null,null,null,null,null,null,null,null,null,null,0]
[null,"Le déplacement des objets mobiles (chariot, tire-palette) est :",null,null,null,null,null,null,null,null,null,null,null,null,null,0]
[null,"Les déplacements avec charge sont :",null,null,null,null,null,null,null,null,null,null,null,null,null,0]
[null,"La prise des objets est :",null,null,null,null,null,null,null,null,null,null,null,null,null,0]
[null,"La réalisation de tâches minutieuses ou complexes est :",null,null,null,null,null,null,null,null,null,null,null,null,null,0]
[null,"L'état, l'encombrement ou les pentes du sol rendent les déplacements :",null,null,null,null,null,null,null,null,null,null,null,null,null,0]
[null,"2. Dimensionnement",null,null,"Facile ou\nnon concerné","Supportable","Difficile","Préciser la réponse\n(quand ? quoi ? pourquoi ?...)"]
[null,"Les postures du tronc (se pencher, se tourner) sont :",null,null,null,null,null,null,null,null,null,null,null,null,null,0]
[null,"Les positions des bras (lever les bras) sont :",null,null,null,null,null,null,null,null,null,null,null,null,null,0]
[null,"Les déplacements longs sont :",null,null,null,null,null,null,null,null,null,null,null,null,null,0]
[null,"Le déplacement ou la manutention des objets encombrants sont :",null,null,null,null,null,null,null,null,null,null,null,null,null,0]
[null,"L'agencement du poste rend le travail :",null,null,null,null,null,null,null,null,null,null,null,null,null,0]
[null,"L'impossibilité de changer de posture rend la tenue du poste :",null,null,null,null,null,null,null,null,null,null,null,null,null,0]
[null,"3. Caractéristiques temporelles ",null,null,"Facile ou\nnon concerné","Supportable","Difficile","Préciser la réponse\n(quand ? quoi ? pourquoi ?...)"]
[null,"Les contraintes du travail répétitif sont :",null,null,null,null,null,null,null,null,null,null,null,null,null,0]
[null,"Les contraintes du travail en flux tendu sont :",null,null,null,null,null,null,null,null,null,null,null,null,null,0]
[null,"La durée des efforts physiques est :",null,null,null,null,null,null,null,null,null,null,null,null,null,0]
[null,"Le choix des moments de pauses est :",null,null,null,null,null,null,null,null,null,null,null,null,null,0]
[null,"Les changements imprévus d’activité sont :",null,null,null,null,null,null,null,null,null,null,null,null,null,0]
[null,"4. Caractéristiques de l'environnement",null,null,"Facile ou\nnon concerné","Supportable","Difficile","Préciser la réponse\n(quand ? quoi ? pourquoi ?...)"]
[null,"Le bruit, la température, l'éclairage rendent la tenue du poste :",null,null,null,null,null,null,null,null,null,null,null,null,null,0]
[null,"Les vibrations (corps, bras, mains)  rendent la tenue du poste :",null,null,null,null,null,null,null,null,null,null,null,null,null,0]
[null,"Les produits chimiques, poussières, fumées rendent la tenue du poste :",null,null,null,null,null,null,null,null,null,null,null,null,null,0]
[null,"L’utilisation des équipements (machine, outils, aides techniques) est :",null,null,null,null,null,null,null,null,null,null,null,null,null,0]
[null,"Le port des équipements de protection individuelle (EPI) est :",null,null,null,null,null,null,null,null,null,null,null,null,null,0]
[null,"5. Organisation",null,null,"Facile ou\nnon concerné","Supportable","Difficile","Préciser la réponse\n(quand ? quoi ? pourquoi ?...)"]
[null,"L'impossibilité de modifier la façon de faire son travail rend le poste :",null,null,null,null,null,null,null,null,null,null,null,null,null,0]
[null,"Les dysfonctionnements, incidents, pannes… rendent le poste :",null,null,null,null,null,null,null,null,null,null,null,null,null,0]
[null,"Les horaires atypiques (travail posté...) rendent le poste :",null,null,null,null,null,null,null,null,null,null,null,null,null,0]
[null,"Les objectifs de production (qualité, quantité, délais) sont :",null,null,null,null,null,null,null,null,null,null,null,null,null,0]
[null,"Le travail à plusieurs rend le poste :",null,null,null,null,null,null,null,null,null,null,null,null,null,0]
[null,"Commentaires :"]

{"sheet":"3","index":7,"n_rows":61,"n_cols":16,"rows_kept":61,"cut":false,"hidden":true,"merged":[[62,1,62,12],[49,7,49,12],[50,7,50,12],[51,7,51,12],[52,7,52,12],[53,7,53,12],[54,1,54,3],[54,7,54,12],[55,7,55,12],[56,7,56,12],[57,7,57,12],[58,7,58,12],[59,7,59,12],[48,1,48,3],[48,7,48,12],[38,7,38,12],[39,7,39,12],[40,7,40,12],[41,7,41,12],[42,1,42,3],[42,7,42,12],[43,7,43,12],[44,7,44,12],[45,7,45,12],[46,7,46,12],[47,7,47,12],[37,7,37,12],[28,1,28,3],[28,7,28,12],[29,7,29,12],[30,7,30,12],[31,7,31,12],[32,7,32,12],[33,7,33,12],[34,7,34,12],[35,1,35,3],[35,7,35,12],[36,7,36,12],[27,7,27,12],[17,2,17,3],[17,6,17,9],[17,11,17,12],[20,1,20,3],[20,7,20,12],[21,7,21,12],[22,7,22,12],[23,7,23,12],[24,7,24,12],[25,7,25,12],[26,7,26,12],[0,1,2,1],[12,1,13,3],[12,4,12,6],[12,7,12,12],[16,2,16,3],[16,6,16,8],[16,11,16,12]]}
[]
[null,null,null,null,null,null,null,null,null,null,null,null,null,"Ne pas redimensionner col. A et Q"]
[]
[]
[]
[]
[]
[]
[]
[]
[]
[]
[null,{"$f":"CONCATENATE(\"Grille de repérage de la charge physique n° \",IF(P14=\"Grille ID\",\"\",P14))","v":"Grille de repérage de la charge physique n° 3"},null,null,"Cotation",null,null,"Répartition [Oui + Difficile] par indicateur"]
[null,null,null,null,"Non + Facile ","Supportable ","Oui + Difficile ","Ind A","Ind 1","Ind 2","Ind 3","Ind 4","Ind 5",null,"N° grille",{"$f":"MID(CELL(\"nomfichier\",Q20),FIND(\"]\",CELL(\"nomfichier\",Q20))+1,99)","v":"3"}]
[null,{"$f":"IF(SUM(Cotation)=0,\"\",CONCATENATE(IF(CtrlCoches=0,\"\",CONCATENATE(\"Nombre d'items cotés = \",34-CtrlCoches,\"/\",34))))","v":""},null,null,{"$f":"IF(COUNTIF($P22:$P60,1)=0,\"\",COUNTIF($P22:$P60,1))","v":""},{"$f":"IF(COUNTIF($P22:$P60,2)=0,\"\",COUNTIF($P22:$P60,2))","v":""},{"$f":"IF(COUNTIF($P22:$P60,3)=0,\"\",COUNTIF($P22:$P60,3))","v":""},{"$f":"IF(COUNTIF($P22:$P28,3)=0,\"\",COUNTIF($P22:$P28,3))","v":""},{"$f":"IF(COUNTIF($P30:$P35,3)=0,\"\",COUNTIF($P30:$P35,3))","v":""},{"$f":"IF(COUNTIF($P37:$P42,3)=0,\"\",COUNTIF($P37:$P42,3))","v":""},{"$f":"IF(COUNTIF($P44:$P48,3)=0,\"\",COUNTIF($P44:$P48,3))","v":""},{"$f":"IF(COUNTIF($P50:$P54,3)=0,\"\",COUNTIF($P50:$P54,3))","v":""},{"$f":"IF(COUNTIF($P56:$P60,3)=0,\"\",COUNTIF($P56:$P60,3))","v":""},null,"Priorité",0]
[]
[null,"Localisation :",null,null,null,"Auditeur :",null,null,null,null,"Effectif :"]
[null,"Poste de travail :",null,null,null,"Salarié(s) interviewé(s) :",null,null,null,null,"Date :",null,null,null,"CtrlCoches",{"$f":"COUNTIF(Cotation,0)","v":34}]
[]
[null,"Indicateurs / Items"]
[null,"A. Santé au travail / Gestion du personnel\n    Pour ce poste, a-t-on observé :",null,null,"Non",null,{"$f":"IF(COUNTIF(Q22:Q28,\"3\")=0,\"Oui\",CONCATENATE(\"Oui = \",COUNTIF(Q22:Q28,\"3\")))","v":"Oui"},"Observations"]
[null,"Un accident du travail avec arrêt ?",null,null,null,null,null,null,null,null,null,null,null,null,null,{"$f":"IF(COUNTA(E22:G22)>1,10,IF(E22=\"P\",1,IF(F22=\"P\",2,IF(G22=\"P\",3,0))))","v":0}]
[null,"Des plaintes, douleurs, pathologies ?",null,null,null,null,null,null,null,null,null,null,null,null,null,{"$f":"IF(COUNTA(E23:G23)>1,10,IF(E23=\"P\",1,IF(F23=\"P\",2,IF(G23=\"P\",3,0))))","v":0}]
[null,"Une restriction d'aptitude et/ou une inaptitude ?",null,null,null,null,null,null,null,null,null,null,null,null,null,0]
[null,"Une alerte du CHSCT ou des représentants du personnel ?",null,null,null,null,null,null,null,null,null,null,null,null,null,0]
[null,"De l’absentéisme récurrent ?",null,null,null,null,null,null,null,null,null,null,null,null,null,0]
[null,"Un recours fréquent à l'intérim ?",null,null,null,null,null,null,null,null,null,null,null,null,null,0]
[null,"Un turn-over significatif ?",null,null,null,null,null,null,null,null,null,null,null,null,null,0]
[null,"1. Efforts physiques",null,null,"Facile ou\nnon concerné","Supportable","Difficile","Préciser la réponse\n(quand ? quoi ? pourquoi ?...)"]
[null,"Les efforts exercés, la levée et la dépose des charges sont :",null,null,null,null,null,null,null,null,null,null,null,null,null,0]
[null,"Le déplacement des objets mobiles (chariot, tire-palette) est :",null,null,null,null,null,null,null,null,null,null,null,null,null,0]
[null,"Les déplacements avec charge sont :",null,null,null,null,null,null,null,null,null,null,null,null,null,0]
[null,"La prise des objets est :",null,null,null,null,null,null,null,null,null,null,null,null,null,0]
[null,"La réalisation de tâches minutieuses ou complexes est :",null,null,null,null,null,null,null,null,null,null,null,null,null,0]
[null,"L'état, l'encombrement ou les pentes du sol rendent les déplacements :",null,null,null,null,null,null,null,null,null,null,null,null,null,0]
[null,"2. Dimensionnement",null,null,"Facile ou\nnon concerné","Supportable","Difficile","Préciser la réponse\n(quand ? quoi ? pourquoi ?...)"]
[null,"Les postures du tronc (se pencher, se tourner) sont :",null,null,null,null,null,null,null,null,null,null,null,null,null,0]
[null,"Les positions des bras (lever les bras) sont :",null,null,null,null,null,null,null,null,null,null,null,null,null,0]
[null,"Les déplacements longs sont :",null,null,null,null,null,null,null,null,null,null,null,null,null,0]
[null,"Le déplacement ou la manutention des objets encombrants sont :",null,null,null,null,null,null,null,null,null,null,null,null,null,0]
[null,"L'agencement du poste rend le travail :",null,null,null,null,null,null,null,null,null,null,null,null,null,0]
[null,"L'impossibilité de changer de posture rend la tenue du poste :",null,null,null,null,null,null,null,null,null,null,null,null,null,0]
[null,"3. Caractéristiques temporelles ",null,null,"Facile ou\nnon concerné","Supportable","Difficile","Préciser la réponse\n(quand ? quoi ? pourquoi ?...)"]
[null,"Les contraintes du travail répétitif sont :",null,null,null,null,null,null,null,null,null,null,null,null,null,0]
[null,"Les contraintes du travail en flux tendu sont :",null,null,null,null,null,null,null,null,null,null,null,null,null,0]
[null,"La durée des efforts physiques est :",null,null,null,null,null,null,null,null,null,null,null,null,null,0]
[null,"Le choix des moments de pauses est :",null,null,null,null,null,null,null,null,null,null,null,null,null,0]
[null,"Les changements imprévus d’activité sont :",null,null,null,null,null,null,null,null,null,null,null,null,null,0]
[null,"4. Caractéristiques de l'environnement",null,null,"Facile ou\nnon concerné","Supportable","Difficile","Préciser la réponse\n(quand ? quoi ? pourquoi ?...)"]
[null,"Le bruit, la température, l'éclairage rendent la tenue du poste :",null,null,null,null,null,null,null,null,null,null,null,null,null,0]
[null,"Les vibrations (corps, bras, mains)  rendent la tenue du poste :",null,null,null,null,null,null,null,null,null,null,null,null,null,0]
[null,"Les produits chimiques, poussières, fumées rendent la tenue du poste :",null,null,null,null,null,null,null,null,null,null,null,null,null,0]
[null,"L’utilisation des équipements (machine, outils, aides techniques) est :",null,null,null,null,null,null,null,null,null,null,null,null,null,0]
[null,"Le port des équipements de protection individuelle (EPI) est :",null,null,null,null,null,null,null,null,null,null,null,null,null,0]
[null,"5. Organisation",null,null,"Facile ou\nnon concerné","Supportable","Difficile","Préciser la réponse\n(quand ? quoi ? pourquoi ?...)"]
[null,"L'impossibilité de modifier la façon de faire son travail rend le poste :",null,null,null,null,null,null,null,null,null,null,null,null,null,0]
[null,"Les dysfonctionnements, incidents, pannes… rendent le poste :",null,null,null,null,null,null,null,null,null,null,null,null,null,0]
[null,"Les horaires atypiques (travail posté...) rendent le poste :",null,null,null,null,null,null,null,null,null,null,null,null,null,0]
[null,"Les objectifs de production (qualité, quantité, délais) sont :",null,null,null,null,null,null,null,null,null,null,null,null,null,0]
[null,"Le travail à plusieurs rend le poste :",null,null,null,null,null,null,null,null,null,null,null,null,null,0]
[null,"Commentaires :"]

{"sheet":"Pistes de prévention","index":8,"n_rows":188,"n_cols":14,"rows_kept":188,"cut":false,"hidden":true,"merged":[[32,1,32,11],[36,2,36,11],[37,2,37,11],[38,2,38,11],[6,9,8,11],[9,9,10,9],[11,9,12,9],[13,9,14,9],[15,9,16,9],[26,1,27,12],[30,1,30,12],[28,1,28,12],[29,1,29,12],[39,2,39,11],[40,2,40,11],[45,1,53,2],[45,4,53,4],[45,5,53,5],[45,6,53,6],[45,7,53,7],[45,8,53,11],[41,1,41,12],[57,1,62,2],[57,4,62,4],[57,5,62,5],[57,6,62,6],[57,7,62,7],[57,8,62,11],[54,1,56,2],[54,4,56,4],[54,5,56,5],[54,6,56,6],[54,7,56,7],[54,8,56,11],[73,1,75,2],[73,4,75,4],[73,5,75,5],[73,6,75,6],[73,7,75,7],[73,8,75,11],[63,1,65,2],[63,8,68,11],[66,1,66,2],[67,1,67,2],[68,1,68,2],[71,1,71,2],[71,8,72,11],[72,1,72,2],[87,2,87,11],[88,2,88,11],[89,2,89,11],[90,2,90,11],[91,2,91,11],[77,1,82,2],[77,4,82,4],[77,5,82,5],[77,6,82,6],[77,7,82,7],[77,8,82,11],[92,2,92,11],[93,2,93,11],[94,2,94,11],[98,1,107,2],[98,4,107,4],[98,5,107,5],[98,6,107,6],[98,7,107,7],[120,1,123,2],[120,4,123,4],[120,5,123,5],[120,6,123,6],[120,7,123,7],[120,8,123,11],[98,8,107,11],[108,1,119,2],[108,4,119,4],[108,5,119,5],[108,6,119,6],[108,7,119,7],[108,8,119,11],[131,1,136,2],[131,4,136,4],[131,5,136,5],[131,6,136,6],[131,7,136,7],[131,8,136,11],[124,1,130,2],[124,4,130,4],[124,5,130,5],[124,6,130,6],[124,7,130,7],[124,8,130,11],[147,1,150,2],[147,4,150,4],[147,5,150,5],[147,6,150,6],[147,7,150,7],[147,8,150,11],[137,1,146,2],[137,4,146,4],[137,5,146,5],[137,6,146,6],[137,7,146,7],[137,8,146,11],[161,2,161,11],[162,2,162,11],[169,2,169,11],[170,2,170,11],[171,2,171,11],[156,2,156,11],[157,2,157,11],[158,2,158,11],[159,2,159,11],[160,2,160,11],[183,2,183,11],[184,2,184,11],[185,2,185,11],[186,2,186,11],[187,2,187,11],[172,2,172,11],[173,2,173,11],[174,2,174,11],[181,2,181,11],[182,2,182,11]]}
[]
[null,null,null,null,null,null,null,null,null,null,null,null,null,"Ne pas redimensionner col. A et Q"]
[]
[]
[]
[]
[null,null,null,null,null,null,null,null,null,"Niveau de risque"]
[]
[]
[null,null,null,null,null,null,null,null,null,"Adapté"]
[]
[null,null,null,null,null,null,null,null,null,"Acceptable"]
[]
[null,null,null,null,null,null,null,null,null,"A éviter"]
[]
[null,null,null,null,null,null,null,null,null,"Inacceptable"]
[]
[]
[]
[]
[]
[]
[]
[]
[]
[]
[null,"MetoPhy"]
[]
[null,"Identifier et réduire les risques liés à l'activité physique au poste de travail"]
[null,{"$f":"Version","v":"v1.0"}]
[null,"Pistes de prévention"]
[]
[null,"Les pistes de prévention, issues du document INRS ED 6161 - © INRS 2014, font référence aux indicateurs des grilles de repérage de la charge physique."]
[]
[]
[null,"1. Efforts physiques"]
[null,"-","Rechercher en priorité la mécanisation des opérations les plus dures."]
[null,"-","Veiller à ce que les masses unitaires manutentionnées manuellement ne dépassent pas 15 kg et éliminer celles supérieures à 25 kg."]
[null,"-","Réaliser les efforts dans des zones d'atteintes acceptables. S'assurer que les hauteurs d'application des efforts lors des prises/déposes ou de tirer/pousser se situent entre 0,75 m et 1,10 m."]
[null,"-","S'assurer que le matériel utilisé est correctement entretenu et que son utilisation respecte les instructions du concepteur."]
[null,"-","Offrir des possibilités de récupération après un effort jugé important par le salarié."]
[null,"Prendre également en compte les indications suivantes :"]
[null,null,null,null,"Niveau de risque"]
[null,null,null,null,"Adapté","Acceptable","A éviter","Inacceptable"]
[null,"Soulever - Transporter"]
[null,"Masse unitaire (en kg)",null,null,"≤ 5","]5 – 15]","]15 – 25]","> 25","Si la masse manutentionnée est supérieure à 15 kg (valeur de référence maximale acceptable selon NF X35-109), une analyse approfondie des manutentions sur la durée d’un poste est nécessaire car les risques d’accident du travail et de maladie professionnelle sont augmentés. \nToute masse supérieure à 25 kg est considérée comme délétère et impose une analyse approfondie et la recherche de pistes de prévention alternatives telles que des conditionnements différents, des aides techniques adaptées."]
[]
[]
[]
[]
[]
[]
[]
[]
[null,"Distance de transport de la charge (en m)",null,null,"≤ 2","]2 – 5]","]5 – 10]","> 10","Il s’agit de distances données pour des déplacements sur un sol plat en bon état et sans obstacle."]
[]
[]
[null,"Facilité de prise",null,null,"Adaptée","Acceptable","Insuffisante","Inadaptée","La qualité de préhension et le maintien des charges manipulées ou des mobiles ont une influence sur les contraintes physiques, les risques de chutes de l'opérateur et de la charge. La charge peut être difficile à saisir, encombrante, dissymétrique, sans prise, fragile, instable, de poids inconnu ou induisant une mauvaise estimation de son poids."]
[]
[]
[]
[]
[]
[null,"Tonnage pour des manutentions réalisées (en t/h) :",null,null,null,null,null,null,"Les tonnages sont exprimés en tonne par heure de manutention consécutive ou non.\nToute manutention de plus de 4t/h est délétère."]
[]
[]
[null,"• moins d'1h/j",null,null,"≤ 2","]1 – 2.5]","]2.5 – 4]","> 4"]
[null,"• de 1 à 4h/j",null,null,"≤ 0.5","]0.5 – 1.25]","]1.25 – 2]","> 2"]
[null,"• de 4 à 7h/j",null,null,"≤ 0.4","]0.4 – 1]","]1 – 1.6]","> 1.6"]
[]
[null,"Tirer - Pousser"]
[null,"Chariot (en kg)",null,null,"≤ 100","]100 – 250]","]250 – 350]","> 350","Sauf pour les transpalettes, le poids à considérer est le poids total du mobile et de sa charge."]
[null,"Transpalette (en kg)",null,null,"≤ 200","]200 – 300]","]300 – 500]","> 500"]
[null,"Distance de déplacement des mobiles (en m)",null,null,"≤ 10","]10 – 30]","]30 – 60]","> 60","Il s’agit de distances données pour des déplacements sur un sol plat en bon état et sans obstacles."]
[]
[]
[null,"Sols"]
[null,"Qualité des sols, dénivelés",null,null,"Bon état sans dénivelé","Bon état mais non entretenu et/ou dénivelé court et faible","Dégradé\net/ou\ndénivelé modéré","Dégradé\net/ou\ndénivelé important\net/ou\nlong","Des sols adaptés à l’activité, propres et non dégradés, limitent les risques d’accident et les forces de frottement lors du pousser/tirer de mobile. \nLes dénivelés comprennent les pentes, les marches, les ressauts, les échelles. S’ils ne peuvent être évités, préconiser un dénivelé court (inférieur à 10 mètres) et faible (pente inférieure à 2%)."]
[]
[]
[]
[]
[]
[]
[]
[]
[null,"2. Dimensionnement"]
[null,"-","Prévoir une signalétique des zones de travail, de stockage et des allées de circulation."]
[null,"-","Prévoir un dimensionnement des zones de circulation respectant les indications de la brochure INRS ED 975 « La circulation en entreprise »."]
[null,"-","Prévoir des distances entre les équipements de travail adaptées aux spécificités de l'activité (éviter les déplacements trop rapides ou trop longs avec port de charge)."]
[null,"-","S'assurer du respect des zones de confort pour les mouvements des membres supérieurs."]
[null,"-","S'assurer que les espaces sous le plan de travail sont suffisants pour les jambes."]
[null,"-","Permettre des changements de position, donner la possibilité de pouvoir travailler assis, assis-debout ou debout."]
[null,"-","Prévoir les volumes et surfaces nécessaires pour les produits en amont et en aval du poste."]
[null,"-","Prévoir le rangement du matériel, de l’outillage, des EPI."]
[null,"Prendre également en compte les indications suivantes :"]
[null,null,null,null,"Niveau de risque"]
[null,null,null,null,"Adapté","Acceptable","A éviter","Inacceptable"]
[null,"Accès et circulation, distance entre les différents équipements\nde travail",null,null,"Adapté","Acceptable","Insuffisant","Inadapté","La conception du poste de travail doit permettre l’accès facile et une circulation aisée entre les différents équipements qui le constituent.\nLe flux des matières premières ou des produits sortants doit être adapté pour limiter le nombre de manipulations et déplacements inutiles.\nL’espace de travail doit pouvoir s’adapter aux variations d’activité (possibilité de stock tampon) et tenir compte du nombre et de la morphologie des salariés.\nL’espace de travail doit permettre le changement de position (assis, assis/debout, debout)."]
[]
[]
[]
[]
[]
[]
[]
[]
[]
[null,"Zone d'atteinte des membres supérieurs",null,null,"Adapté","Acceptable","Insuffisant","Inadapté","La manipulation d’objet doit pouvoir s’effectuer dans les zones d’atteintes de membres supérieurs sans mouvement visible du tronc quelle que soit la position de travail (assis, assis-debout, debout). Toute activité qui nécessite une zone d’atteinte au-dessus des épaules impose une cotation Inacceptable.\nLes prises et les déposes de colis lors des manutentions manuelles ou les manipulations d’objets doivent pouvoir s’effectuer dans une zone comprise entre 0,20 m et 0,50 m devant soi.\nLes prises et les déposes debout doivent pouvoir s’effectuer entre 0,75 m et 1,10 m. \nToutes manipulations ou manutentions effectuées en dehors de ces limites sont à noter au minimum A éviter, le ressenti pénible des opérateurs conduit à la cotation Inacceptable."]
[]
[]
[]
[]
[]
[]
[]
[]
[]
[]
[]
[null,"Espace pour les membres inférieurs",null,null,"Adapté","Acceptable","insuffisant","Inadapté","Les dimensions sous le plan de travail doivent permettre :\n- le passage des membres inférieurs\n- l’entrée et la sortie du poste de travail aisément\n- l’utilisation de commandes aux pieds sans contrainte"]
[]
[]
[]
[null,"Flexion, inclinaison, rotation, visibles du tronc",null,null,"Jamais","Rarement","Souvent","Toujours","Toute flexion, inclinaison et rotation du tronc visible et sans efforts de maintien de la posture impose une cotation A éviter, la cotation Inacceptable s’impose pour des postures identiques avec efforts additionnels (maintien de la posture, port de charge).\nLa cotation Adapté et Acceptable s’applique lorsque qu’il n’y a pas de flexion, d’inclinaison ou de rotation visible ou un mouvement qui ne gêne pas l’opérateur."]
[]
[]
[]
[]
[]
[]
[null,"Postures inconfortables",null,null,"Jamais","Rarement","Souvent","Toujours","Toute activité réalisée dans une posture inconfortable et/ou maintenue (accroupi, à genoux, prise complexe, mains au-dessus du niveau des épaules) est contraignante. Elle impose la cotation minimum A éviter, le ressenti pénible des opérateurs conduit à la cotation Inacceptable."]
[]
[]
[]
[]
[]
[null,"Réglages des équipements de travail",null,null,"Adapté","Acceptable","Insuffisant","Inadapté","La rehausse, l'assise, la machine, le plan de travail, les tapis d'approvisionnement doivent pouvoir être réglés simplement et facilement pour : \n- tenir compte de la diversité des opérateurs (caractéristiques morphologiques, capacités fonctionnelles, âge, genre)\n- permettre un changement rapide et facile de position\n- pouvoir s'adapter aux exigences de l'activité (marchandises ou matériels de tailles et de volumes différents)\nL’apprentissage de l’utilisation des réglages doit être prévu lors de la formation au poste de travail."]
[]
[]
[]
[]
[]
[]
[]
[]
[]
[null,"Objets manutentionnés ou déplacés encombrants",null,null,"Jamais","Rarement","Souvent","Toujours","Le manque de visibilité du fait de l’encombrement et de l’instabilité des charges transportées augmentent le risque d’accident et génèrent des postures inconfortables."]
[]
[]
[]
[]
[]
[]
[]
[null,"3. Caractéristiques temporelles"]
[null,"-","Éviter que la cadence de travail soit imposée sans latitude décisionnelle (adapter la cadence machine, les standards de production, les délais)."]
[null,"-","Concevoir des postes de travail qui limitent les tâches répétitives."]
[null,"-","Prévoir à proximité des postes de travail, des espaces de récupération adaptés (confort thermique, possibilité de point d'eau, sièges)."]
[null,"-","Organiser des périodes de récupération pour les activités exigeantes physiquement."]
[null,"-","Permettre aux opérateurs de réguler leur activité (pouvoir souffler quand on en exprime le besoin)."]
[null,"-","Organiser la production en tenant compte des sollicitations au poste de travail (répartir équitablement sur une journée les productions sollicitantes et les productions non sollicitantes)."]
[null,"-","Analyser les aléas de production (défaut de maintenance, panne, surcroît d'activité, absence de personnel non prévue, rupture d'approvisionnement, lot de pièces non conformes)."]
[]
[]
[]
[]
[]
[null,"4. Caractéristiques de l'environnement"]
[null,"-","Réduire les contraintes thermiques, vibratoires, sonores."]
[null,"-","Optimiser le confort visuel par un éclairage naturel et artificiel adapté à l’activité."]
[null,"-","Éviter les dénivelés et maintenir les sols en bon état."]
[null,"-","Renouveler le matériel vieillissant pour profiter des technologies les plus modernes (machine moins vibrante et plus silencieuse, siège à suspension, matériel et accessoire d’aide à la manutention).\n"]
[null,"-","S'assurer du bon fonctionnement des équipements qui assurent le confort de l'environnement de travail (entretenir les installations de ventilation, de chauffage, d'éclairage, les ascenseurs)."]
[null,"-","S'assurer de l'efficacité, de la disponibilité, de l'entretien des EPI et des vêtements de travail."]
[]
[]
[]
[]
[]
[null,"5. Organisation"]
[null,"-","S'assurer que les salariés puissent réguler leur activité (interruption volontaire temporaire, constitution de stock tampon) sans gêner la production."]
[null,"-","S'assurer de la pertinence de la mise en place des horaires irréguliers qui peuvent nuire à la santé des salariés."]
[null,"-","Associer toutes les personnes concernées au projet de conception des postes de travail (agents des méthodes, personnels de maintenance et de production, animateur sécurité, médecin du travail)."]
[null,"-","Évaluer les besoins en équipements d’aide à la manutention et les choisir en concertation avec les utilisateurs."]
[null,"-","Anticiper les contraintes de production le plus en amont possible pour faciliter la planification des horaires de travail."]
[null,"-","Former les salariés aux risques liés à l’activité physique au travers par exemple de la formation-action PRAP de l’INRS (Prévention des Risques liés à l’Activité Physique)."]
[null,"-","Développer les compétences des salariés pour leur permettre de réaliser leur travail en préservant leur santé et leur sécurité par une formation adaptée portant sur les efforts, les postures, l'hygiène de vie (sommeil, nutrition, hydratation)."]